bitfinex/quotes_ETHUSD_20250319
["timestamp","ask_amount","ask_price","bid_price","bid_amount"]
[1742408302395,4.91183,2035.9,2035.6,0.9452976]
[1742408302605,4.91171,2036.0,2035.6,0.1196976]
[1742408302783,0.815,2036.6,2035.6,0.1196976]
[1742408303094,4.91071,2036.4,2036.0,4.91141]
[1742408303296,0.815,2036.6,2035.8,4.91195]
[1742408303493,4.91102,2036.3,2035.9,7.91178]
[1742408303694,4.91063,2036.4,2035.9,3.0]
[1742408303860,5.72524,2036.6,2036.1,4.91126]
[1742408304060,4.91024,2036.6,2036.2,4.91099]
[1742408304375,4.91024,2036.6,2035.9,0.37891]
[1742408304376,4.9099,2036.7,2036.3,9.82141]
[1742408304573,4.91014,2036.6,2036.2,4.91104]
[1742408304760,4.9099,2036.7,2036.3,4.91077]
[1742408304960,4.90963,2036.9,2036.3,0.982181]
[1742408305256,4.90898,2037.1,2036.7,4.90981]
[1742408305476,4.90889,2037.2,2036.7,4.90985]
[1742408305672,4.90889,2037.2,2036.7,4.90973]
[1742408305877,13.01848,2037.3,2036.8,4.90946]
[1742408306091,0.8176,2038.0,2036.9,0.0490918]
[1742408306292,14.76,2038.5,2037.1,3.0]
[1742408306293,0.8176,2038.3,2037.1,3.0]
[1742408306609,4.90713,2037.9,2037.6,0.7742]
[1742408306763,4.90784,2037.6,2037.3,0.7742]
[1742408306965,4.90804,2037.5,2037.3,0.7742]
[1742408307175,4.90762,2037.7,2037.2,3.0]
[1742408307379,4.90814,2037.5,2037.2,3.0]
[1742408307558,4.90752,2037.7,2037.2,3.0]
[1742408307764,4.90776,2037.6,2037.2,7.90849]
[1742408307966,4.90775,2037.6,2037.2,7.90849]
[1742408308182,4.90678,2038.0,2037.3,4.90831]
[1742408308183,4.90736,2037.8,2037.3,4.90831]
[1742408308362,4.90795,2037.6,2037.0,3.0]
[1742408308589,4.90818,2037.5,2037.0,7.90896]
[1742408308980,4.90823,2037.4,2037.0,7.90916]
[1742408309394,4.90773,2037.6,2036.9,0.8165]
[1742408309604,4.90871,2037.2,2036.9,0.8165]
[1742408309880,5.68589,2037.7,2037.1,4.9087]
[1742408310094,4.90688,2038.0,2037.5,4.90779]
[1742408310296,4.90688,2038.0,2037.6,4.90772]
[1742408310536,4.90688,2038.0,2037.5,10.62416]
[1742408310823,4.90628,2038.2,2037.6,3.0]
[1742408311121,4.9069,2038.0,2037.6,3.0]
[1742408311320,4.90787,2037.6,2037.2,3.0]
[1742408311521,4.90785,2037.6,2037.2,3.0]
[1742408311726,4.90751,2037.7,2037.2,7.90856]
[1742408311883,4.90751,2037.7,2037.3,4.90845]
[1742408312091,4.90751,2037.7,2037.0,0.7544]
[1742408312092,4.90775,2037.6,2037.1,7.9089]
[1742408312317,13.00999,2038.0,2037.1,3.0]
[1742408312318,13.00987,2038.0,2037.1,3.0]
[1742408312490,4.90823,2037.4,2037.1,3.0]
[1742408312690,4.90888,2037.2,2036.9,8.104]
[1742408312931,4.9099,2036.7,2036.3,0.7544]
[1742408313311,4.9099,2036.7,2036.3,5.66516]
[1742408313826,4.90977,2036.8,2036.4,3.0]
[1742408314126,4.90991,2036.7,2036.3,3.7544]
[1742408314332,4.9109,2036.3,2036.0,0.8145]
[1742408314481,8.19231725,2036.9,2036.0,0.8145]
[1742408314837,4.91051,2036.5,2036.0,3.8145]
[1742408314996,4.91051,2036.5,2036.1,4.91132]
[1742408315327,9.82051,2036.6,2036.1,4.91113]
[1742408315488,4.91054,2036.5,2036.0,0.8145]
[1742408315688,4.91075,2036.4,2036.0,3.8145]
[1742408315909,0.982051,2036.6,2036.0,3.8145]
[1742408316086,4.91039,2036.5,2036.1,9.82239]
[1742408316407,4.91039,2036.5,2036.1,4.91117]
[1742408316922,4.91039,2036.5,2036.0,8.72604]
[1742408317123,4.91104,2036.3,2036.0,3.0]
[1742408317335,4.91126,2036.2,2035.8,3.0]
[1742408317483,9.82258,2036.2,2035.8,3.0]
[1742408317688,4.90996,2036.7,2036.2,4.911]
[1742408317889,4.90978,2036.8,2036.3,9.8215]
[1742408318287,3.7618,2037.0,2036.0,8.099]
[1742408318485,4.90968,2036.8,2036.3,4.91065]
[1742408318932,5.67101,2037.0,2036.2,4.9109]
[1742408319098,4.91005,2036.7,2036.3,4.91081]
[1742408319428,4.91088,2036.3,2035.9,7.91182]
[1742408319725,4.9112,2036.2,2035.7,5.68936]
[1742408319934,4.91091,2036.3,2035.8,7.91195]
[1742408320112,4.91091,2036.3,2035.7,0.7771]
[1742408320113,4.91055,2036.5,2035.7,0.7771]
[1742408320320,9.82115,2036.5,2036.0,4.91149]
[1742408320629,4.91086,2036.3,2035.9,7.9118]
[1742408320812,9.8216,2036.4,2036.0,4.91155]
[1742408321019,4.91078,2036.4,2035.9,7.9117]
[1742408321216,4.91056,2036.5,2036.0,4.91142]
[1742408321534,4.91056,2036.5,2036.0,9.82284]
[1742408321735,13.00706,2036.7,2036.2,4.91092]
[1742408321901,4.9099,2036.7,2036.2,4.91086]
[1742408322106,4.91025,2036.6,2036.0,3.0]
[1742408322302,4.9105,2036.5,2036.1,4.91121]
[1742408322757,24.57844,2036.8,2036.0,7.91154]
[1742408322894,4.90994,2036.7,2036.3,4.91077]
[1742408323096,19.66866,2036.8,2036.1,1.600754]
[1742408323097,14.759,2036.8,2036.5,4.91037]
[1742408323432,4.90966,2036.8,2036.4,4.91057]
[1742408323891,4.9097,2036.8,2036.4,4.9105]
[1742408324104,4.90955,2036.9,2036.4,4.91039]
[1742408324445,0.7618,2037.0,2036.4,4.91039]
[1742408324446,4.90939,2037.0,2036.5,4.91027]
[1742408324645,4.90869,2037.2,2036.4,4.91062]
[1742408324943,4.90869,2037.2,2036.4,4.91043]
[1742408325152,4.90906,2037.1,2036.5,4.91025]
[1742408325448,4.90865,2037.3,2036.7,4.90972]
[1742408325756,4.9087,2037.2,2036.8,4.90963]
[1742408326051,4.90847,2037.3,2036.8,4.90949]
[1742408326213,4.90847,2037.3,2036.9,4.9093]
[1742408326550,9.81712,2037.3,2036.9,4.9093]
[1742408326861,4.9087,2037.2,2036.8,4.90949]
[1742408327354,4.90958,2036.9,2036.5,4.91025]
[1742408327648,4.90958,2036.9,2036.5,7.91037]
[1742408327853,4.90873,2037.2,2036.7,4.90969]
[1742408328009,4.90846,2037.3,2036.8,4.90949]
[1742408328211,4.90804,2037.5,2037.0,4.90915]
[1742408328414,4.90831,2037.4,2037.0,4.90915]
[1742408328953,3.7848,2037.6,2036.9,0.8159]
[1742408329247,3.7848,2037.6,2036.3,4.91076]
[1742408329248,4.9098,2036.8,2036.3,4.91076]
[1742408329449,4.90993,2036.7,2036.2,4.91093]
[1742408329651,4.90993,2036.7,2036.2,4.9109]
[1742408329947,4.91004,2036.7,2036.3,4.91085]
[1742408330157,4.91004,2036.7,2036.2,4.91105]
[1742408330158,4.91012,2036.7,2036.2,4.91099]
[1742408330357,4.91012,2036.7,2036.0,4.91138]
[1742408330358,3.0,2036.6,2035.7,4.91219]
[1742408330649,4.9113,2036.2,2035.7,4.91219]
[1742408330949,4.91082,2036.4,2035.8,4.91192]
[1742408330950,7.91092,2036.3,2035.8,4.91192]
[1742408331148,12.82201,2036.3,2035.8,4.91192]
[1742408331446,7.91017,2036.6,2035.8,4.91192]
[1742408331649,7.91063,2036.4,2035.6,5.0322376]
[1742408331853,12.99696,2036.7,2036.2,4.91093]
[1742408332059,7.91033,2036.6,2036.1,4.91131]
[1742408332265,7.91033,2036.6,2036.2,4.91107]
[1742408332551,3.0,2036.6,2036.3,4.91086]
[1742408332772,3.0,2036.6,2036.3,4.91076]
[1742408332970,3.0,2036.6,2036.2,4.91096]
[1742408333270,3.0,2036.5,2035.8,0.776]
[1742408333547,4.91125,2036.2,2035.8,0.776]
[1742408333713,4.91125,2036.2,2035.8,5.68802]
[1742408334060,4.91091,2036.3,2035.8,5.68787]
[1742408334257,0.767,2036.4,2035.6,0.1196976]
[1742408334428,4.91177,2036.0,2035.6,0.1196976]
[1742408334627,4.91193,2035.9,2035.6,0.1196976]
[1742408335354,4.91216,2035.8,2035.6,0.1196976]
[1742408335561,4.91193,2035.9,2035.6,0.1196976]
[1742408335854,4.91209,2035.8,2035.6,0.1196976]
[1742408336231,4.91231,2035.7,2035.6,0.1196976]
[1742408336441,5.894492,2035.8,2035.6,0.1196976]
[1742408336624,7.91177,2036.0,2035.6,0.1196976]
[1742408336956,7.91172,2036.0,2035.6,0.1196976]
[1742408337157,7.91225,2035.8,2035.6,0.1196976]
[1742408337865,4.91231,2035.7,2035.6,0.1196976]
[1742408338236,4.91187,2035.9,2035.6,0.1196976]
[1742408338423,3.0,2035.9,2035.6,0.1196976]
[1742408338628,3.0,2036.1,2035.7,4.91207]
[1742408338827,3.0,2036.1,2035.7,4.91215]
[1742408339233,7.91145,2036.1,2035.7,4.91215]
[1742408339441,7.91145,2036.1,2035.6,9.9446576]
[1742408339656,7.91099,2036.3,2035.8,4.91196]
[1742408339849,3.0,2036.1,2035.7,4.9122]
[1742408340444,7.91099,2036.3,2035.8,9.82392]
[1742408340648,3.0,2036.3,2035.9,4.91164]
[1742408340844,4.91146,2036.1,2035.6,13.1100976]
[1742408341046,4.91177,2036.0,2035.6,8.1976976]
[1742408341242,7.91192,2035.9,2035.6,0.1196976]
[1742408341452,4.91231,2035.7,2035.6,0.1196976]
[1742408341650,7.91231,2035.7,2035.6,0.1196976]
[1742408342845,8.46231,2035.7,2035.6,0.1196976]
[1742408343049,17.33461,2035.7,2035.6,7.6e-06]
[1742408343249,20.50697663,2035.7,2035.6,7.6e-06]
[1742408343495,12.43097663,2035.7,2035.6,7.6e-06]
[1742408344045,19.95597663,2035.7,2035.6,7.6e-06]
[1742408344570,4.9134,2035.3,2034.6,8.075]
[1742408344763,7.91353,2035.2,2034.8,4.91439]
[1742408345182,3.0,2035.2,2034.8,4.91432]
[1742408345382,3.0,2035.3,2035.0,4.91386]
[1742408345691,0.8316,2036.4,2035.1,8.075]
[1742408345866,0.8316,2036.4,2035.3,0.55]
[1742408346061,3.0,2036.0,2035.6,4.91235]
[1742408346267,3.0,2036.0,2035.7,4.91221]
[1742408346490,0.8316,2036.4,2035.5,4.91269]
[1742408346491,4.91205,2035.9,2035.5,4.91269]
[1742408346659,4.91213,2035.8,2035.4,12.98702]
[1742408346850,3.0,2036.2,2035.4,12.98702]
[1742408346851,7.91159,2036.0,2035.5,4.91279]
[1742408347050,3.0,2036.3,2035.5,1.298679]
[1742408347252,7.91169,2036.0,2035.6,4.91255]
[1742408347486,3.0,2036.0,2035.6,4.91236]
[1742408347662,7.91087,2036.3,2035.5,2.101379]
[1742408347993,4.91198,2035.9,2035.5,0.8027]
[1742408348357,4.91219,2035.8,2035.5,0.8027]
[1742408348557,9.8235,2036.0,2035.5,0.8027]
[1742408348778,4.91185,2035.9,2035.5,5.71537]
[1742408349499,14.767,2037.1,2035.6,4.91252]
[1742408349798,4.90952,2036.9,2036.5,4.91023]
[1742408349964,4.90991,2036.7,2036.3,4.91071]
[1742408350152,4.91038,2036.5,2036.1,12.98113]
[1742408350598,4.90977,2036.8,2036.4,4.9105]
[1742408350762,4.90993,2036.7,2036.3,4.91082]
[1742408350962,4.90977,2036.8,2036.1,12.98131]
[1742408351194,5.65977,2037.0,2036.5,4.91034]
[1742408351363,4.90933,2037.0,2036.6,4.91013]
[1742408351563,3.0,2036.9,2036.6,4.91013]
[1742408351767,4.90933,2037.0,2036.5,4.91038]
[1742408351984,13.80066,2037.3,2036.3,4.91068]
[1742408351985,4.90993,2036.7,2036.3,4.91068]
[1742408352163,3.0,2037.2,2036.1,12.98128]
[1742408352352,4.9108,2036.4,2036.0,4.91136]
[1742408352578,0.8204,2036.7,2036.2,4.91097]
[1742408352761,3.0,2036.5,2036.2,4.91097]
[1742408352968,0.8204,2037.0,2036.0,0.59910654]
[1742408353177,5.7297,2037.0,2036.6,4.91011]
[1742408353391,3.0,2036.9,2036.4,4.91043]
[1742408353576,6.793459,2037.0,2036.0,0.55]
[1742408353577,0.8204,2037.0,2036.7,4.90976]
[1742408353899,4.90862,2037.3,2036.4,4.91057]
[1742408353900,4.90955,2036.9,2036.4,4.91057]
[1742408354055,4.90921,2037.0,2036.3,8.065]
[1742408354257,3.0,2037.0,2036.7,4.90968]
[1742408354503,4.90801,2037.5,2036.4,5.73692]
[1742408354668,0.67033577,2037.4,2037.0,4.90905]
[1742408354999,4.90701,2037.9,2037.3,4.90834]
[1742408355159,4.90653,2038.1,2037.1,0.87538091]
[1742408355358,4.90782,2037.6,2037.2,4.90859]
[1742408355600,0.7589,2037.8,2037.1,0.8263]
[1742408355969,4.90791,2037.6,2037.1,5.73513]
[1742408356173,4.90836,2037.4,2036.9,4.9093]
[1742408356386,4.90836,2037.4,2037.0,4.90914]
[1742408356700,4.90865,2037.3,2036.8,5.70289]
[1742408356889,4.90865,2037.3,2036.9,4.9094]
[1742408357086,4.90865,2037.3,2036.3,0.8206]
[1742408357087,4.90893,2037.1,2036.3,0.8206]
[1742408357291,4.90986,2036.8,2036.3,5.73142]
[1742408357488,4.91015,2036.6,2036.3,0.8206]
[1742408357720,4.90979,2036.8,2036.3,0.8206]
[1742408357863,4.90961,2036.9,2036.4,4.91044]
[1742408358066,4.90968,2036.8,2036.4,4.91044]
[1742408358378,1.0387493,2036.8,2036.3,5.73143]
[1742408358578,4.91028,2036.6,2036.2,9.8219]
[1742408358779,4.90992,2036.7,2036.3,4.91086]
[1742408358960,9.81995,2036.7,2036.3,4.91086]
[1742408359385,4.91113,2036.2,2035.9,0.8258]
[1742408359591,4.91113,2036.2,2035.7,4.91208]
[1742408359592,4.91113,2036.2,2035.7,4.91219]
[1742408359764,4.91145,2036.1,2035.7,4.91219]
[1742408359965,5.893324,2036.2,2035.7,4.91219]
[1742408360197,5.893324,2036.2,2035.5,0.812]
[1742408360198,0.982194,2036.2,2035.9,4.9116]
[1742408360408,0.7985,2036.8,2036.0,4.91143]
[1742408360609,3.0,2036.7,2036.3,4.91069]
[1742408360814,0.568203,2037.0,2036.3,0.04910668]
[1742408360982,3.568203,2037.0,2036.6,9.82001]
[1742408361183,0.490791,2037.5,2036.7,4.90976]
[1742408361413,4.90903,2037.1,2036.7,4.90976]
[1742408361567,4.90879,2037.2,2036.4,12.9656]
[1742408361905,5.398851,2037.5,2036.5,5.46038]
[1742408362107,5.398851,2037.5,2037.0,4.90907]
[1742408362418,3.0,2037.3,2037.0,4.90902]
[1742408362878,8.3011601,2037.4,2037.0,4.90902]
[1742408363085,3.3929201,2037.4,2037.0,4.90899]
[1742408363269,5.398851,2037.5,2037.0,4.90899]
[1742408363270,3.490791,2037.5,2037.1,4.90877]
[1742408363472,4.90832,2037.4,2037.0,4.90904]
[1742408363714,4.90874,2037.2,2036.7,4.90985]
[1742408363910,4.90916,2037.1,2036.6,4.90993]
[1742408364094,9.81861,2037.0,2036.6,4.90993]
[1742408364295,3.981861,2036.9,2036.6,4.90993]
[1742408364671,0.981861,2036.9,2036.7,4.90989]
[1742408364909,0.981861,2036.9,2036.6,4.90993]
[1742408365075,5.891391,2036.9,2036.5,4.91037]
[1742408365423,8.891281,2036.9,2036.5,4.91037]
[1742408365628,8.891281,2036.9,2036.5,4.91035]
[1742408365629,8.891371,2036.9,2036.5,4.91035]
[1742408365796,8.891371,2036.9,2036.4,4.91051]
[1742408365797,6.2897361,2036.8,2036.4,4.91051]
[1742408366001,6.2897361,2036.8,2036.3,8.051]
[1742408366002,4.91032,2036.6,2036.3,8.051]
[1742408366199,4.91032,2036.6,2036.0,5.91826786]
[1742408366200,3.0,2036.7,2036.0,4.91147]
[1742408366514,4.91043,2036.5,2036.0,4.91154]
[1742408366696,4.91086,2036.3,2036.0,4.91154]
[1742408366895,4.91111,2036.2,2035.7,4.9123]
[1742408367089,4.91097,2036.3,2035.9,4.91179]
[1742408367317,3.491043,2036.4,2036.1,4.91131]
[1742408367834,3.491043,2036.4,2036.0,4.91157]
[1742408368005,0.8401433,2036.3,2036.0,4.91157]
[1742408368527,0.8401433,2036.3,2036.1,4.91131]
[1742408368826,5.7511333,2036.3,2035.7,0.36037532]
[1742408369028,4.91129,2036.2,2035.7,4.91214]
[1742408369228,4.91145,2036.1,2035.7,4.91214]
[1742408369533,4.91202,2035.9,2035.3,1.16715448]
[1742408369749,4.91202,2035.9,2035.5,4.91276]
[1742408370024,7.91169,2036.0,2035.3,4.91326]
[1742408370025,4.91243,2035.7,2035.3,4.91326]
[1742408370522,4.91269,2035.6,2035.1,6.67261499]
[1742408370723,5.482009,2035.6,2035.2,4.91348]
[1742408371343,4.91306,2035.4,2035.0,4.914]
[1742408371645,4.91306,2035.4,2035.0,9.8279]
[1742408371646,3.0,2035.4,2035.0,9.8279]
[1742408371931,4.91337,2035.3,2034.9,4.91415]
[1742408372132,4.91337,2035.3,2034.8,8.044]
[1742408372133,4.91371,2035.2,2034.8,8.044]
[1742408372316,4.91371,2035.2,2034.7,4.91467]
[1742408372626,4.91371,2035.2,2034.5,5.67518]
[1742408372627,4.91386,2035.1,2034.6,4.91485]
[1742408372838,9.82785,2035.1,2034.6,4.91485]
[1742408373071,9.82785,2035.1,2034.5,0.7602]
[1742408373072,3.0,2034.8,2034.5,0.7602]
[1742408373219,3.0,2034.9,2034.6,4.91496]
[1742408373848,3.0,2034.9,2034.7,4.91466]
[1742408374061,3.7813,2035.3,2034.9,4.91424]
[1742408374521,8.69462,2035.3,2034.9,4.91424]
[1742408374724,8.69462,2035.3,2034.9,9.82823]
[1742408374725,0.7813,2035.3,2034.9,9.82823]
[1742408374960,0.7813,2035.3,2034.9,4.9141]
[1742408375158,0.7813,2035.3,2034.7,4.91451]
[1742408375159,4.91366,2035.2,2034.7,4.91451]
[1742408375460,4.91387,2035.1,2034.6,4.91485]
[1742408375619,4.91387,2035.1,2034.7,4.91454]
[1742408375964,4.91387,2035.1,2034.6,4.91483]
[1742408375965,4.91404,2035.0,2034.6,4.91483]
[1742408376115,4.91404,2035.0,2034.6,4.91496]
[1742408376321,4.91465,2034.8,2034.2,0.753]
[1742408376555,4.91507,2034.6,2034.2,4.91583]
[1742408376867,4.91484,2034.7,2034.2,4.91583]
[1742408377021,4.91512,2034.6,2034.1,4.92614]
[1742408377222,4.91484,2034.7,2034.2,4.91592]
[1742408377431,0.874314,2034.7,2034.1,0.01]
[1742408377636,4.91531,2034.5,2034.1,0.01]
[1742408377832,4.9155,2034.4,2034.1,0.01]
[1742408378033,0.8243,2034.2,2034.1,0.01]
[1742408378333,8.74023,2034.2,2034.1,0.01]
[1742408378529,10.105834,2034.2,2034.1,0.01]
[1742408378733,5.189904,2034.2,2034.1,0.01]
[1742408378919,10.105834,2034.2,2034.1,0.01]
[1742408379356,13.93856125,2034.2,2034.1,0.01]
[1742408379535,10.105834,2034.2,2034.1,0.01]
[1742408379734,13.93856125,2034.2,2034.1,0.01]
[1742408380131,10.105834,2034.2,2034.1,0.01]
[1742408380316,18.692834,2034.2,2034.1,0.01]
[1742408381238,3.8243,2034.2,2034.1,0.01]
[1742408381568,8.74023,2034.2,2034.1,0.01]
[1742408381856,3.8243,2034.2,2034.1,0.01]
[1742408382215,0.8243,2034.2,2034.1,0.01]
[1742408382667,5.74023,2034.2,2034.1,0.01]
[1742408382862,11.282724,2034.2,2034.1,0.01]
[1742408383260,11.832724,2034.2,2034.1,0.01]
[1742408384210,11.832724,2034.2,2033.6,0.1196976]
[1742408384211,5.68124,2033.7,2033.6,0.1196976]
[1742408384370,14.26724,2033.7,2033.6,0.1196976]
[1742408384525,17.00559973,2033.7,2033.6,0.1196976]
[1742408385262,16.45559973,2033.7,2033.6,0.1196976]
[1742408385463,20.00559973,2033.7,2033.6,7.6e-06]
[1742408385665,23.28832698,2033.7,2033.6,7.6e-06]
[1742408385864,23.28832698,2033.7,2032.4,5.70146]
[1742408385865,4.91917,2032.9,2032.4,5.70146]
[1742408386092,4.92003,2032.6,2032.1,4.92085]
[1742408386386,4.92002,2032.6,2032.1,9.84171]
[1742408386665,4.91978,2032.7,2032.3,4.92041]
[1742408386836,4.91924,2032.9,2032.4,4.92014]
[1742408387023,0.7944,2033.0,2032.7,4.91956]
[1742408387227,4.9191,2032.9,2032.5,4.91991]
[1742408387463,4.91909,2032.9,2032.3,4.92035]
[1742408387628,4.91946,2032.8,2032.3,4.92035]
[1742408387834,0.7944,2033.0,2032.1,0.55]
[1742408388031,0.7944,2033.0,2032.1,11.034]
[1742408388275,4.91917,2032.9,2032.5,4.91992]
[1742408388452,4.91917,2032.9,2032.4,4.92027]
[1742408388738,4.9198,2032.6,2032.1,17.87568]
[1742408388963,4.91952,2032.8,2032.0,0.8205]
[1742408389163,4.91968,2032.7,2032.2,4.92068]
[1742408389368,4.92039,2032.4,2032.0,4.92116]
[1742408389531,12.95132,2032.8,2032.0,4.92116]
[1742408389532,9.84022,2032.5,2032.0,4.92116]
[1742408389731,10.824242,2032.5,2032.1,4.921]
[1742408389932,5.904072,2032.5,2032.0,9.84218]
[1742408390185,5.904072,2032.5,2032.1,4.92088]
[1742408390342,0.984022,2032.5,2032.1,4.92088]
[1742408390691,4.9202,2032.5,2032.1,4.92088]
[1742408391173,4.92033,2032.4,2032.0,4.92113]
[1742408391529,4.92066,2032.3,2031.9,4.92143]
[1742408391748,0.7776,2032.5,2032.2,4.92074]
[1742408391947,4.91957,2032.7,2032.2,4.92074]
[1742408391948,3.0,2032.6,2032.2,4.92074]
[1742408392247,4.91932,2032.8,2032.2,0.04920556]
[1742408392594,1.351857,2032.9,2032.2,4.92077]
[1742408392595,4.91981,2032.6,2032.2,4.92077]
[1742408392895,4.92006,2032.5,2032.1,5.70683]
[1742408393189,5.69961,2032.9,2032.0,12.95124]
[1742408393190,4.91932,2032.8,2032.0,12.95124]
[1742408393353,4.92062,2032.3,2032.0,8.03]
[1742408393553,4.92062,2032.3,2031.9,4.9214]
[1742408393554,9.84134,2032.3,2031.9,4.9214]
[1742408393795,4.92092,2032.2,2031.8,4.92171]
[1742408394174,4.92158,2031.9,2031.6,0.1196976]
[1742408394477,4.92144,2032.0,2031.6,0.1196976]
[1742408394786,4.92163,2031.9,2031.6,0.1196976]
[1742408395092,4.92101,2032.1,2031.6,0.1196976]
[1742408395456,4.92198,2031.7,2031.6,0.1196976]
[1742408395652,5.69938,2031.7,2031.6,0.1196976]
[1742408395857,6.24938,2031.7,2031.6,0.1196976]
[1742408396058,9.24938,2031.7,2031.6,0.1196976]
[1742408396258,12.96552273,2031.7,2031.6,7.6e-06]
[1742408396967,13.63857827,2031.7,2031.6,7.6e-06]
[1742408397296,12.96552273,2031.7,2031.6,7.6e-06]
[1742408397603,13.63857827,2031.7,2031.6,7.6e-06]
[1742408397901,12.01741725,2031.2,2031.1,7.6e-06]
[1742408398196,9.93643173,2031.2,2031.1,7.6e-06]
[1742408398499,12.56741725,2031.2,2031.1,7.6e-06]
[1742408399470,13.24047279,2031.2,2031.1,7.6e-06]
[1742408399800,13.24047279,2031.2,2030.0,0.0735228]
[1742408399801,0.7602,2030.8,2030.0,0.0735228]
[1742408400007,8.027,2030.7,2030.0,0.0735228]
[1742408400298,5.72476,2030.1,2030.0,2.8e-06]
[1742408400500,28.54476,2030.1,2030.0,2.8e-06]
[1742408400669,31.54476,2030.1,2030.0,2.8e-06]
[1742408400994,9.23573,2029.7,2029.6,4e-07]
[1742408401153,0.7589,2029.7,2029.6,4e-07]
[1742408401693,3.0,2029.9,2029.6,4e-07]
[1742408401867,0.7746,2030.0,2029.6,4e-07]
[1742408401868,5.70078,2030.0,2029.6,4e-07]
[1742408402067,0.7746,2030.0,2029.6,4e-07]
[1742408402273,5.67754727,2029.8,2029.6,4e-07]
[1742408402502,4.92683,2029.7,2029.6,4e-07]
[1742408402809,0.75079727,2029.8,2029.6,4e-07]
[1742408402986,0.75079727,2029.8,2029.7,4.92683]
[1742408404071,5.80358,2030.6,2030.2,4.9255]
[1742408404271,0.87872,2030.6,2029.6,6.2973104]
[1742408404457,0.75079727,2030.7,2030.6,4.92465]
[1742408404660,0.75079727,2030.7,2030.3,3.7595]
[1742408404887,0.75079727,2030.7,2030.3,0.7595]
[1742408405090,4.92323,2031.2,2030.7,4.92431]
[1742408405276,4.92383,2031.0,2030.4,7.92498]
[1742408405462,5.416213,2031.0,2030.5,4.92475]
[1742408405666,4.92394,2030.9,2030.4,3.0]
[1742408405902,4.92394,2030.9,2030.5,4.92487]
[1742408406062,4.92368,2031.0,2030.5,4.92471]
[1742408406267,9.84662,2031.2,2030.4,7.92512]
[1742408406489,12.948,2031.3,2030.8,4.92405]
[1742408406663,4.92241,2031.6,2031.1,4.92333]
[1742408406877,4.92226,2031.6,2031.1,4.92325]
[1742408407115,0.7872,2031.8,2030.9,4.92373]
[1742408407412,4.92354,2031.1,2030.7,13.73205]
[1742408407615,1.17125349,2031.5,2030.8,3.0]
[1742408407786,4.92308,2031.3,2030.8,4.92407]
[1742408408115,0.8272,2031.7,2030.8,7.92416]
[1742408408316,4.92207,2031.7,2031.3,4.92293]
[1742408408816,8.022,2031.9,2031.4,4.92259]
[1742408408817,4.9218,2031.8,2031.4,4.92259]
[1742408409001,0.8272,2032.0,2031.5,4.92223]
[1742408409209,4.922,2031.7,2031.3,0.775]
[1742408409509,5.37325988,2031.7,2031.1,4.92339]
[1742408409681,4.92233,2031.6,2031.0,5.71957]
[1742408409876,4.92379,2031.0,2030.6,4.92447]
[1742408410080,3.0,2031.5,2030.4,0.7999]
[1742408410317,4.92378,2031.0,2030.5,4.92477]
[1742408410534,3.0,2031.1,2030.4,0.7999]
[1742408410719,1.1740308,2030.9,2030.5,4.92489]
[1742408411021,1.1740308,2030.9,2030.4,5.72484]
[1742408411188,1.1740308,2030.9,2030.4,5.7249]
[1742408411391,7.00782288,2030.9,2030.4,5.725]
[1742408411722,4.92493,2030.5,2030.1,5.75793]
[1742408411924,4.9255,2030.3,2029.9,4.9262]
[1742408412307,4.92517,2030.4,2030.0,4.92591]
[1742408412696,4.92505,2030.5,2029.9,4.92634]
[1742408412896,6.219235,2030.5,2030.0,4.92602]
[1742408413222,6.219235,2030.5,2029.8,0.8322]
[1742408413223,1.1740308,2030.4,2029.9,4.92614]
[1742408413428,1.1740308,2030.4,2030.2,4.92548]
[1742408413640,1.1740308,2030.4,2029.8,0.8322]
[1742408413641,4.92538,2030.3,2029.8,0.8322]
[1742408413787,0.8021,2030.3,2029.6,5.29204569]
[1742408413987,4.92654,2029.9,2029.6,4e-07]
[1742408414335,4.92683,2029.7,2029.6,4e-07]
[1742408415027,6.1048594,2029.7,2029.6,4e-07]
[1742408415335,9.9069594,2029.7,2029.6,4e-07]
[1742408415836,10.4569594,2029.7,2029.6,4e-07]
[1742408416038,5.7562,2029.3,2029.2,6.8e-06]
[1742408416338,7.92829,2029.2,2028.5,4.92955]
[1742408416540,7.92829,2029.2,2028.5,4.92954]
[1742408416541,4.92875,2029.0,2028.5,4.92954]
[1742408416744,4.92875,2029.0,2028.2,7.93046]
[1742408418911,7.23e-06,2029.1,2029.0,10.278148]
[1742408419495,8.014,2030.1,2029.7,4.92668]
[1742408419702,0.69015008,2030.2,2029.8,4.92638]
[1742408419904,8.8454,2030.3,2030.0,4.92599]
[1742408420207,14.809,2030.4,2030.2,4.92552]
[1742408420544,5.72245,2030.6,2030.2,4.92552]
[1742408420709,8.012,2030.7,2030.1,4.92572]
[1742408420912,4.92482,2030.6,2030.1,4.92572]
[1742408421234,4.925,2030.5,2030.1,4.92572]
[1742408421436,3.0,2030.5,2029.6,4.92696]
[1742408421601,4.92604,2030.1,2029.7,4.92682]
[1742408421822,4.92813,2029.2,2028.5,0.7627]
[1742408422019,4.92659,2029.8,2029.0,4.92836]
[1742408422020,8.01,2029.4,2029.0,4.92836]
[1742408422221,8.01,2029.4,2028.5,0.7627]
[1742408422222,12.93772,2029.4,2028.8,4.9288]
[1742408422446,12.93769,2029.4,2028.9,4.92863]